[Event "Sardinia World Festival-A 2024"]
[Site "Orosei"]
[Date "2024.04.30"]
[Round "5.43"]
[White "Saine, Zachary"]
[Black "Semling, Johannes"]
[Result "0-1"]
[ECO "C02"]
[WhiteElo "2032"]
[BlackElo "2120"]
[Annotator "NA RC"]
[PlyCount "90"]
[EventDate "2024.04.26"]
[EventType "swiss"]
[EventCountry "ITA"]
[SourceTitle "playchess.com"]
[Source "ChessBase"]
[SourceQuality "1"]
[TimeControl "40/5400+30:1800+30"]

1. e4 {[%emt 0:04:10]} e6 {[%emt 0:00:28]} 2. d4 {[%emt 0:00:21]} d5 {[%emt 0:00:11]} 3. e5 {[%emt 0:00:08]} c5 {[%emt 0:00:38]} 4. c3 {[%emt 0:00:12]} Nc6 {[%emt 0:00:07]} 5. Nf3 {[%emt 0:00:06]} Qb6 {[%emt 0:00:25]} 6. Na3 {[%emt 0:00:23]} cxd4 {[%emt 1:31:41]} 7. cxd4 {[%emt 0:00:17]} Bb4+ {[%emt 0:00:00]} 8. Bd2 {[%emt 0:00:08]} Nge7 {[%emt 0:00:00]} 9. Nc2 {[%emt 0:00:31]} Bxd2+ {[%emt 0:00:00]} 10. Qxd2 {[%emt 0:00:07]} Bd7 {[%emt 0:00:00]} 11. Rb1 {[%emt 0:03:11]} Rc8 {[%emt 0:00:00]} 12. Be2 {[%emt 0:11:41]} O-O {[%emt 0:00:00]} 13. O-O {[%emt 0:01:54]} h6 {[%emt 0:00:00]} 14. b4 {[%emt 0:02:01]} a6 {[%emt 0:00:00]} 15. b5 {[%emt 0:09:17]} axb5 {[%emt 0:00:00]} 16. Bxb5 {[%emt 0:04:05]} Qa5 {[%emt 0:00:00]} 17. Qxa5 Nxa5 {[%emt 0:00:00]} 18. Na1 {[%emt 0:16:47]} Rfd8 {[%emt 0:00:00]} 19. h3 {[%emt 0:07:53]} Rc3 {[%emt 0:00:00]} 20. a4 {[%emt 0:10:30]} Bxb5 {[%emt 0:00:00]} 21. Rxb5 {[%emt 0:00:17]} Nec6 {[%emt 0:00:00]} 22. Rfb1 {[%emt 0:13:24]} Rc4 {[%emt 0:00:00]} 23. Nb3 {[%emt 0:00:41]} Nxb3 {[%emt 0:00:00]} 24. R1xb3 {[%emt 0:01:54]} Rxa4 {[%emt 0:00:00]} 25. Rxb7 {[%emt 0:01:45]} Nxd4 {[%emt 0:00:00]} 26. Nxd4 {[%emt 0:05:16]} Rxd4 {[%emt 0:00:00]} 27. Rf3 {[%emt 0:00:16]} Rf8 {[%emt 0:00:00]} 28. Re3 {[%emt 0:00:05]} g5 {[%emt 0:00:00]} 29. Rd7 {[%emt 0:02:36]} Rf4 {[%emt 0:00:00]} 30. g3 {[%emt 0:02:04]} Rf5 {[%emt 0:00:00]} 31. Kg2 {[%emt 0:01:35]} Rc8 {[%emt 0:00:00]} 32. Re2 {[%emt 0:02:55]} Rc4 {[%emt 0:00:24]} 33. Ra7 {[%emt 0:00:00]} Kg7 {[%emt 0:01:20]} 34. Ra3 {[%emt 0:00:00]} h5 {[%emt 0:03:26]} 35. f3 {[%emt 0:00:00]} h4 {[%emt 0:02:52]} 36. Rb3 {[%emt 0:00:36]} hxg3 {[%emt 0:01:03]} 37. Kxg3 {[%emt 0:00:01]} Rff4 {[%emt 0:00:28]} 38. Rd3 {[%emt 0:01:24]} Rc1 {[%emt 0:01:11]} 39. Kg2 {[%emt 0:00:39]} Rfc4 {[%emt 0:00:29]} 40. Rdd2 {[%emt 0:00:19]} R1c3 {[%emt 0:00:38]} 41. Kg3 {[%emt 0:06:19]} Rf4 {[%emt 0:00:44]} 42. Rf2 {[%emt 0:00:06]} Re3 {[%emt 0:00:07]} 43. Rde2 {[%emt 0:00:23]} Rfxf3+ {[%emt 0:00:15]} 44. Rxf3 {[%emt 0:00:36]} Rxe2 {[%emt 0:00:06]} 45. Kg4 {[%emt 0:00:02]} Rxe5 {[%emt 0:00:12]} 0-1

[Event "Sardinia World Festival-A 2024"]
[Site "Orosei"]
[Date "2024.04.30"]
[Round "5.44"]
[White "Natoli, Alessia"]
[Black "Molinari, Carlo"]
[Result "0-1"]
[ECO "C47"]
[WhiteElo "1917"]
[BlackElo "1867"]
[Annotator "NA RC"]
[PlyCount "80"]
[EventDate "2024.04.26"]
[EventType "swiss"]
[EventCountry "ITA"]
[SourceTitle "playchess.com"]
[Source "ChessBase"]
[SourceQuality "1"]
[TimeControl "40/5400+30:1800+30"]

1. e4 {[%emt 0:00:02]} e5 {[%emt 0:00:48]} 2. Nf3 {[%emt 0:00:11]} Nc6 {[%emt 0:00:37]} 3. Nc3 {[%emt 0:00:21]} Nf6 {[%emt 0:03:50]} 4. a3 {[%emt 0:00:07]} Be7 {[%emt 0:01:39]} 5. d4 {[%emt 0:01:08]} d6 {[%emt 0:02:37]} 6. Bb5 {[%emt 0:02:11]} exd4 {[%emt 0:06:42]} 7. Nxd4 {[%emt 0:01:00]} Bd7 {[%emt 0:01:39]} 8. Nxc6 {[%emt 0:02:02]} bxc6 {[%emt 0:02:23]} 9. Be2 {[%emt 0:01:18]} O-O {[%emt 0:05:36]} 10. O-O {[%emt 0:00:49]} a5 {[%emt 0:05:54]} 11. f4 {[%emt 0:03:05]} Qc8 {[%emt 0:07:47]} 12. h3 {[%emt 0:03:49]} a4 {[%emt 0:07:04]} 13. Bf3 {[%emt 0:04:14]} Rd8 {[%emt 0:07:22]} 14. Qe2 {[%emt 0:03:11]} Bf8 {[%emt 0:07:20]} 15. Be3 {[%emt 0:03:12]} Re8 {[%emt 0:03:23]} 16. Qf2 {[%emt 0:02:41]} Ra5 {[%emt 0:05:55]} 17. Kh2 {[%emt 0:05:16]} Qb8 {[%emt 0:06:15]} 18. Bd4 {[%emt 0:03:38]} Be6 {[%emt 0:04:18]} 19. Bxf6 {[%emt 0:06:50]} gxf6 {[%emt 0:00:07]} 20. Rfb1 {[%emt 0:04:30]} Bg7 {[%emt 0:01:24]} 21. f5 {[%emt 0:02:33]} Bc4 {[%emt 0:01:37]} 22. b3 {[%emt 0:03:39]} axb3 {[%emt 0:00:23]} 23. cxb3 {[%emt 0:00:07]} Bd3 {[%emt 0:00:31]} 24. Rd1 {[%emt 0:01:23]} Ba6 {[%emt 0:01:31]} 25. b4 {[%emt 0:00:48]} Rae5 {[%emt 0:00:08]} 26. Kh1 {[%emt 0:03:42]} Kh8 {[%emt 0:04:18]} 27. g3 {[%emt 0:01:34]} Bb7 {[%emt 0:01:05]} 28. Rab1 {[%emt 0:02:12]} Qa8 {[%emt 0:00:50]} 29. a4 {[%emt 0:01:15]} d5 {[%emt 0:01:34]} 30. exd5 {[%emt 0:03:00]} Rxf5 {[%emt 0:00:58]} 31. g4 {[%emt 0:02:12]} Rfe5 {[%emt 0:00:52]} 32. Qg2 {[%emt 0:01:52]} cxd5 {[%emt 0:00:56]} 33. Bxd5 {[%emt 0:00:38]} Bxd5 {[%emt 0:01:13]} 34. Rxd5 {[%emt 0:00:21]} Re3 {[%emt 0:02:36]} 35. Rc1 {[%emt 0:07:34]} f5 {[%emt 0:00:58]} 36. Nb5 {[%emt 0:01:37]} Re1+ {[%emt 0:04:04]} 37. Rxe1 {[%emt 0:00:29]} Rxe1+ {[%emt 0:00:06]} 38. Kh2 {[%emt 0:00:39]} c6 {[%emt 0:00:34]} 39. Rxf5 {[%emt 0:01:04]} Qb8+ {[%emt 0:00:17]} 40. Qg3 {[%emt 0:00:43]} Rh1+ {[%emt 0:00:14]} 0-1

[Event "Sardinia World Festival-A 2024"]
[Site "Orosei"]
[Date "2024.04.30"]
[Round "5.45"]
[White "Joel Paul Ganta"]
[Black "Fonda, Marco"]
[Result "1-0"]
[ECO "D36"]
[WhiteElo "1969"]
[BlackElo "1825"]
[Annotator "NA RC"]
[PlyCount "71"]
[EventDate "2024.04.26"]
[EventType "swiss"]
[EventCountry "ITA"]
[SourceTitle "playchess.com"]
[Source "ChessBase"]
[SourceQuality "1"]
[TimeControl "40/5400+30:1800+30"]

1. d4 {[%emt 0:01:12]} Nf6 {[%emt 0:00:11]} 2. c4 {[%emt 0:00:04]} e6 {[%emt 0:00:16]} 3. Nc3 {[%emt 0:00:03]} d5 {[%emt 0:00:32]} 4. cxd5 {[%emt 0:00:03]} exd5 {[%emt 0:00:09]} 5. Bg5 {[%emt 0:00:02]} c6 {[%emt 0:01:46]} 6. Qc2 {[%emt 0:00:05]} Be7 {[%emt 0:00:53]} 7. e3 {[%emt 0:00:02]} O-O {[%emt 0:03:13]} 8. Bd3 {[%emt 0:01:03]} Nbd7 {[%emt 0:01:33]} 9. Nge2 {[%emt 0:00:03]} Re8 {[%emt 0:01:15]} 10. O-O {[%emt 0:00:03]} h6 {[%emt 0:00:41]} 11. Bh4 {[%emt 0:00:03]} b6 {[%emt 0:04:51]} 12. f3 {[%emt 0:04:21]} Bb7 {[%emt 0:04:53]} 13. Rad1 {[%emt 0:02:32]} Qc8 {[%emt 0:07:46]} 14. Bf5 {[%emt 0:01:11]} Ba6 {[%emt 0:05:11]} 15. Rfe1 {[%emt 0:06:53]} Ng4 {[%emt 0:05:25]} 16. Bxg4 {[%emt 0:09:23]} Bxh4 {[%emt 0:00:14]} 17. g3 {[%emt 0:01:06]} Be7 {[%emt 0:05:27]} 18. Nf4 {[%emt 0:04:25]} Qb7 {[%emt 0:06:00]} 19. e4 {[%emt 0:03:58]} Nf6 {[%emt 0:03:25]} 20. Bh3 {[%emt 0:06:17]} dxe4 {[%emt 0:07:21]} 21. fxe4 {[%emt 0:00:12]} Bb4 {[%emt 0:00:56]} 22. a3 {[%emt 0:06:18]} Bxc3 {[%emt 0:01:42]} 23. bxc3 {[%emt 0:00:04]} Rad8 {[%emt 0:01:55]} 24. c4 {[%emt 0:07:37]} Qc7 {[%emt 0:04:09]} 25. Bg2 {[%emt 0:09:20]} Re7 {[%emt 0:03:59]} 26. e5 {[%emt 0:01:54]} Rde8 {[%emt 0:01:28]} 27. e6 {[%emt 0:06:24]} fxe6 {[%emt 0:04:08]} 28. Ng6 {[%emt 0:00:10]} Rd7 {[%emt 0:00:40]} 29. Ne5 {[%emt 0:07:27]} Rd6 {[%emt 0:00:58]} 30. Rf1 {[%emt 0:00:03]} Rf8 {[%emt 0:09:04]} 31. Qg6 {[%emt 0:08:28]} Bb7 {[%emt 0:01:03]} 32. Be4 {[%emt 0:02:58]} Nxe4 {[%emt 0:02:13]} 33. Rxf8+ {[%emt 0:00:03]} Kxf8 {[%emt 0:00:18]} 34. Rf1+ {[%emt 0:02:46]} Nf6 {[%emt 0:01:12]} 35. Qh7 {[%emt 0:00:02]} Rxd4 {[%emt 0:04:36]} 36. Rxf6+ {[%emt 0:00:33]} 1-0

[Event "Sardinia World Festival-A 2024"]
[Site "Orosei"]
[Date "2024.04.30"]
[Round "5.46"]
[White "Saivigneash S M"]
[Black "Nassa, Nicolas"]
[Result "1/2-1/2"]
[ECO "D37"]
[WhiteElo "1817"]
[BlackElo "1969"]
[Annotator "NA RC"]
[PlyCount "100"]
[EventDate "2024.04.26"]
[EventType "swiss"]
[EventCountry "ITA"]
[SourceTitle "playchess.com"]
[Source "ChessBase"]
[SourceQuality "1"]
[TimeControl "40/5400+30:1800+30"]

1. d4 {[%emt 0:01:31]} d5 {[%emt 0:00:04]} 2. Nf3 {[%emt 0:00:11]} Nf6 {[%emt 0:00:08]} 3. c4 {[%emt 0:00:17]} c6 {[%emt 0:00:02]} 4. Nc3 {[%emt 0:00:11]} e6 {[%emt 0:00:03]} 5. Bf4 {[%emt 0:00:15]} Nbd7 {[%emt 0:01:53]} 6. e3 {[%emt 0:00:11]} Be7 {[%emt 0:00:05]} 7. Be2 {[%emt 0:00:08]} dxc4 {[%emt 0:00:31]} 8. Bxc4 {[%emt 0:00:18]} b5 {[%emt 0:00:04]} 9. Be2 {[%emt 0:06:21]} a6 {[%emt 0:00:25]} 10. a3 {[%emt 0:00:26]} Bb7 {[%emt 0:01:21]} 11. O-O {[%emt 0:01:59]} c5 {[%emt 0:01:40]} 12. dxc5 {[%emt 0:02:41]} Nxc5 {[%emt 0:01:15]} 13. Qxd8+ {[%emt 0:07:44]} Rxd8 {[%emt 0:01:00]} 14. Rad1 {[%emt 0:00:19]} O-O {[%emt 0:00:50]} 15. h3 {[%emt 0:05:36]} Nd5 {[%emt 0:05:05]} 16. Nxd5 {[%emt 0:09:32]} Bxd5 {[%emt 0:02:22]} 17. Be5 {[%emt 1:01:20]} f6 {[%emt 0:18:46]} 18. Bd4 {[%emt 0:00:00]} Na4 {[%emt 0:06:21]} 19. b4 {[%emt 0:00:00]} e5 {[%emt 0:03:12]} 20. Ba1 {[%emt 0:00:00]} Nb6 {[%emt 0:07:51]} 21. Nd2 {[%emt 0:00:00]} Rc8 {[%emt 0:00:42]} 22. Rc1 {[%emt 0:00:00]} Rfd8 {[%emt 0:00:48]} 23. Rfd1 {[%emt 0:00:00]} Rxc1 {[%emt 0:02:41]} 24. Rxc1 {[%emt 0:00:00]} Bxg2 {[%emt 0:00:04]} 25. Kxg2 {[%emt 0:00:00]} Rxd2 {[%emt 0:00:01]} 26. Bf3 {[%emt 0:00:00]} Nc4 {[%emt 0:01:47]} 27. Bc3 {[%emt 0:00:00]} Rd6 {[%emt 0:01:49]} 28. Bb7 {[%emt 0:00:00]} Kf8 {[%emt 0:00:58]} 29. Kf3 {[%emt 0:00:00]} g6 {[%emt 0:09:29]} 30. Ke2 {[%emt 0:00:00]} Ke8 {[%emt 0:10:30]} 31. Ra1 {[%emt 0:00:01]} Kd7 {[%emt 0:00:38]} 32. a4 {[%emt 0:02:43]} Kc7 {[%emt 0:01:44]} 33. Be4 {[%emt 0:01:09]} Kb6 {[%emt 0:01:50]} 34. axb5 {[%emt 0:01:31]} axb5 {[%emt 0:00:06]} 35. Ra8 {[%emt 0:01:04]} Rd8 {[%emt 0:00:14]} 36. Rxd8 {[%emt 0:00:38]} Bxd8 {[%emt 0:00:00]} 37. Bd5 {[%emt 0:00:46]} Nd6 {[%emt 0:02:12]} 38. e4 {[%emt 0:01:09]} Be7 {[%emt 0:00:28]} 39. Kd3 {[%emt 0:00:45]} h5 {[%emt 0:00:25]} 40. f3 {[%emt 0:00:39]} Bf8 {[%emt 0:01:00]} 41. Bg8 {[%emt 0:03:45]} g5 {[%emt 0:01:22]} 42. Be6 {[%emt 0:00:31]} Nb7 {[%emt 0:00:13]} 43. Bd5 {[%emt 0:12:31]} Nd8 {[%emt 0:00:25]} 44. Ke3 {[%emt 0:02:11]} Nc6 {[%emt 0:01:46]} 45. Bxc6 {[%emt 0:00:01]} Kxc6 {[%emt 0:00:01]} 46. Kf2 {[%emt 0:00:24]} Bd6 {[%emt 0:00:49]} 47. Kg3 {[%emt 0:02:44]} Kd7 {[%emt 0:06:20]} 48. Bd2 {[%emt 0:03:15]} Ke6 {[%emt 0:00:16]} 49. Bc3 {[%emt 0:02:48]} f5 {[%emt 0:01:00]} 50. Bd2 {[%emt 0:00:26]} g4 {[%emt 0:42:54]} 1/2-1/2

[Event "Sardinia World Festival-A 2024"]
[Site "Orosei"]
[Date "2024.04.30"]
[Round "5.47"]
[White "Becker, Martin Alexander"]
[Black "Botez, Alexandra"]
[Result "0-1"]
[ECO "D04"]
[WhiteElo "2373"]
[BlackElo "1970"]
[Annotator "TA"]
[PlyCount "154"]
[EventDate "2024.04.26"]
[EventType "swiss"]
[EventCountry "ITA"]
[SourceTitle "playchess.com"]
[Source "ChessBase"]
[SourceQuality "1"]
[TimeControl "40/5400+30:1800+30"]

{[%evp 53,154,0,0,0,0,-4,0,0,0,0,20,14,19,0,0,-752,-702,-707,0,0,0,-410,-238,-187,-39,-41,-9,-31,0,-32,-24,-101,-8,-66,-31,-372,-356,-498,-452,-589,-608,-577,-466,-551,-503,-479,-523,-547,-515,-640,-691,-1271,-1156,-1798,-1989,-2856,-2072,-1912,-3195,-2563,-1195,-2568,-1585,-1858,-1697,-1838,-1561,-1236,-1100,-1282,-806,-718,-687,-1028,-1103,-1266,-1297,-1410,-1358,-1466,-1393,-1584,-1666,-1767,-1690,-2713,-2689,-2211,-2026,-4134,-1716,-29983,-1825,-2034,-1920,-2093,-1962,-29978,-29979,-29979,-29980,-29978,-12406]} 1. Nf3 {[%emt 0:00:04]} Nf6 {[%emt 0:00:07]} 2. d4 {[%emt 0:00:26]} g6 {[%emt 0:00:25]} 3. e3 {[%emt 0:00:58]} Bg7 {[%emt 0:00:43]} 4. b3 {[%emt 0:00:42]} d5 {[%emt 0:02:26]} 5. Bb2 {[%emt 0:04:01]} O-O {[%emt 0:08:13]} 6. Be2 {[%emt 0:01:42]} Ne4 {[%emt 0:09:26] D04: Colle System.} 7. Ne5 $146 {[%emt 0:06:16]} ({Predecessor:} 7. O-O a5 8. a4 c5 9. Na3 Nc6 10. Nb5 f5 11. c4 Be6 12. Rc1 Nb4 13. Nd2 Rc8 14. Nxe4 fxe4 {1-0 Martirosyan,H (2617)-Stefanova,A (2462) Titled Tuesday intern op 30th June blitz 2020 (2)}) 7... f6 {[%emt 0:02:05]} 8. Nd3 {[%emt 0:08:43]} a5 {[%emt 0:01:09]} 9. O-O {[%emt 0:05:55]} c6 {[%emt 0:03:48]} 10. c4 {[%emt 0:01:58]} Bf5 {[%emt 0:20:48]} 11. Nd2 {[%emt 0:05:49]} Bh6 {[%emt 0:05:06]} 12. f4 {[%emt 0:08:49]} Nxd2 {[%emt 0:14:57]} 13. Qxd2 {[%emt 0:00:12]} Bxd3 {[%emt 0:00:03]} 14. Bxd3 {[%emt 0:00:40]} f5 {[%emt 0:00:10]} 15. Rac1 {[%emt 0:09:15]} e6 {[%emt 0:00:10]} 16. Rc2 {[%emt 0:08:38]} Rf7 {[%emt 0:00:11]} 17. Ba3 {[%emt 0:01:36]} Bf8 {[%emt 0:00:21]} 18. Bb2 {[%emt 0:03:00]} Bb4 {[%emt 0:02:32]} 19. Bc3 {[%emt 0:03:30]} Bxc3 {[%emt 0:00:43]} 20. Qxc3 {[%emt 0:00:19]} b6 {[%emt 0:03:33]} 21. a3 {[%emt 0:01:39]} Rb7 {[%emt 0:05:35]} 22. Rb1 {[%emt 0:00:40]} Rba7 {[%emt 0:03:13]} 23. Rcb2 {[%emt 0:02:49]} Qe7 {[%emt 0:00:17]} 24. Ra2 {[%emt 0:03:39]} Rc7 {[%emt 0:00:22]} 25. Raa1 {[%emt 0:00:44]} Nd7 {[%emt 0:01:47]} 26. b4 {[%emt 0:01:48]} axb4 {[%emt 0:00:53]} 27. axb4 {[%emt 0:00:44]} Rca7 {[%emt 0:00:25]} 28. Rxa7 {[%emt 0:04:24]} Rxa7 {[%emt 0:00:03]} 29. b5 {[%emt 0:03:44]} cxb5 {[%emt 0:03:08]} 30. Rxb5 {[%emt 0:07:14]} Qa3 {[%emt 0:01:32]} 31. Rb3 {[%emt 0:00:20]} Qa2 {[%emt 0:00:58]} 32. cxd5 {[%emt 0:00:45]} (32. h3 {simplifies} Kf7 33. Kf1 Qa1+ 34. Qxa1 Rxa1+ 35. Kf2) 32... exd5 {[%emt 0:00:11]} 33. Qc8+ {[%emt 0:00:37]} (33. h3 {simplifies} Kf7 34. Kf1 Qa1+ 35. Qxa1 Rxa1+ 36. Bb1) 33... Kg7 {[%emt 0:00:22]} 34. Rc3 $2 {[%emt 0:00:49][%mdl 8192]} (34. Qc3 $11) 34... Qd2 $19 {[%emt 0:00:06]} 35. Bf1 {[%emt 0:01:32]} Kh6 $2 {[%emt 0:00:36]} ({Black should play} 35... Nc5 $1 $19 {( -> ...Ra2)} 36. dxc5 Qxc3) 36. Rd3 $1 $11 {[%emt 0:01:30]} Qe1 {[%emt 0:04:12]} 37. Qc2 $2 {[%emt 0:01:47][%mdl 8192]} (37. Qd8 $11 {and White stays safe.}) 37... Nf6 {[%emt 0:06:06]} (37... Ra1 $142 {[%csl Ga1][%cal Re1f1]} 38. Qf2 Qxf2+ 39. Kxf2 Nf6) 38. Qe2 {[%emt 0:01:01]} Qb1 {[%emt 0:00:44]} (38... Ra1 $19 39. Qxe1 Rxe1) 39. Rd1 $15 {[%emt 0:00:15]} Qe4 {[%emt 0:01:09]} 40. h3 {[%emt 0:01:09]} Ra3 {[%emt 0:00:36]} 41. Re1 {[%emt 0:01:22]} Kg7 {[%emt 0:07:18]} 42. g3 {[%emt 0:06:28] [#]} (42. g4 $11 {keeps the balance.}) 42... b5 {[%emt 0:01:16]} (42... Qe7 $1 $17 {[%mdl 512] ...Ne4 would now be deadly.} 43. g4 (43. Bg2 h5) 43... fxg4 44. hxg4 g5 45. fxg5 Ng8) 43. Bg2 {[%emt 0:01:24]} (43. g4 $1 $11) 43... Qe7 {[%emt 0:02:42]} 44. e4 $2 {[%emt 0:05:28][%mdl 8192]} (44. g4 $15) 44... fxe4 $19 {[%emt 0:01:34]} (44... Nxe4 45. g4 Qb4 46. Rc1 $17) 45. Qxb5 {[%emt 0:00:37]} Rxg3 {[%emt 0:00:32]} 46. Kh2 {[%emt 0:03:12]} Nh5 {[%emt 0:00:20]} 47. Qb8 {[%emt 0:03:27]} Qf6 {[%emt 0:04:47]} 48. Rf1 {[%emt 0:03:01]} Rd3 {[%emt 0:04:16]} 49. Qb7+ {[%emt 0:03:22]} Qf7 {[%emt 0:00:25]} 50. Qb8 {[%emt 0:03:13]} Rxd4 {[%emt 0:01:19]} 51. Qb2 {[%emt 0:01:15]} Qf6 $1 {[%emt 0:00:08]} 52. Ra1 {[%emt 0:00:28]} Qxf4+ {[%emt 0:01:01]} 53. Kg1 {[%emt 0:00:35]} Qe3+ {[%emt 0:00:13]} 54. Kh2 {[%emt 0:00:38]} Kh6 {[%emt 0:00:11]} 55. Qb8 {[%emt 0:00:59]} Qf4+ {[%emt 0:00:30]} 56. Qxf4+ {[%emt 0:00:15]} Nxf4 {[%emt 0:00:05]} 57. Bf1 {[%emt 0:01:01]} Kg5 {[%emt 0:00:43]} 58. Kg3 {[%emt 0:00:06]} Nh5+ {[%emt 0:00:53]} 59. Kf2 {[%emt 0:00:02]} Kf4 {[%emt 0:01:58]} 60. Ra7 {[%emt 0:00:23]} e3+ {[%emt 0:00:42]} 61. Ke1 {[%emt 0:00:30]} Nf6 {[%emt 0:01:11]} 62. Rf7 {[%emt 0:00:26]} Kf5 {[%emt 0:00:38]} 63. Ke2 {[%emt 0:00:37]} Rf4 {[%emt 0:00:59]} 64. Ke1 {[%emt 0:01:03]} d4 {[%emt 0:00:28]} 65. Bd3+ {[%emt 0:00:17]} Kg5 {[%emt 0:00:10]} 66. Re7 {[%emt 0:00:55]} Kh4 {[%emt 0:00:14]} 67. Bf1 {[%emt 0:01:25]} Kg3 {[%emt 0:00:20]} 68. Ra7 {[%emt 0:00:37]} g5 {[%emt 0:01:48]} 69. Rg7 {[%emt 0:00:05]} h6 {[%emt 0:02:46]} 70. Rg6 {[%emt 0:00:03]} Nd7 {[%emt 0:01:46]} 71. Rxh6 {[%emt 0:00:29]} Ne5 {[%emt 0:00:10]} (71... Rf2 $142 72. Re6 Rb2) 72. Rd6 {[%emt 0:01:37]} Nf3+ {[%emt 0:00:12]} (72... Rf2 $142 73. Be2 d3 (73... Kxh3 $2 74. Rxd4 Rf4 75. Rd8 $19) 74. Rxd3 Nxd3+ 75. Bxd3 Kxh3 76. Bf1+ Kh4 77. Kd1 g4 (77... Rxf1+ 78. Ke2 Rf8 79. Kxe3 g4 80. Ke4 g3 81. Kd5 g2 82. Kd6 g1=Q 83. Kd5 Rf5+ 84. Ke4 Qg4+ 85. Ke3 Rf3+ 86. Ke2 Qg2+ 87. Ke1 Rf1#) 78. Bd3 g3 (78... Rd2+ 79. Kc1 Rxd3 80. Kc2 Rd2+ 81. Kc3 g3 82. Kc4 g2 83. Kb5 g1=Q 84. Kc4 Qc1+ 85. Kb5 Rb2+ 86. Ka6 Qa1#) 79. Be2 g2 80. Kc2 g1=Q (80... g1=R {gets mated.} 81. Kd3 Rg3 82. Ke4 Rxe2 83. Kd5 Rc2 84. Ke5 e2 85. Ke4 e1=Q+ 86. Kd4 Rc8 87. Kd5 Rd3#) 81. Kd3 Qc1 (81... Qg3 82. Kc4 Rxe2 83. Kd3 Rd2+ 84. Kc4 e2 85. Kb5 e1=Q 86. Kc6 Qb8 87. Kc5 Qc1#) 82. Ke4 Rxe2 83. Kf5 Rf2+ 84. Ke5 e2 85. Kd6 e1=Q 86. Kd7 Rd2#) 73. Kd1 $19 {[%emt 0:00:31]} Ng1 {[%emt 0:00:12]} 74. Bc4 {[%emt 0:00:39]} Nxh3 {[%emt 0:00:05]} 75. Bd3 {[%emt 0:01:15]} Nf2+ {[%emt 0:00:22]} 76. Ke2 {[%emt 0:00:02]} Nxd3 {[%emt 0:00:08]} 77. Kxd3 {[%emt 0:00:01]} Kf2 {[%emt 0:00:24]} (77... Kf3 $142 78. Rh6 g4 79. Rh1 g3 (79... e2 $2 80. Re1 $19) 80. Rf1+ Kg4 81. Rg1 Kh3 82. Rh1+ Kg2 83. Rc1 Kh2 84. Rc2+ g2 85. Rb2 Kh1 86. Rb8 g1=Q (86... g1=B $2 87. Rg8 $19) (86... g1=R {is a self mate.} 87. Re8 Kg2 88. Kc4 Kf2 89. Rb8 e2 90. Rb2 d3+ 91. Kd5 Ke3 92. Rb8 d2 93. Kc6 Rg6+ 94. Kc5 d1=Q 95. Rb3+ Kf2 96. Rd3 e1=Q 97. Rf3+ Kxf3 98. Kb5 Qe5#) 87. Rh8+ Qh2 88. Rxh2+ Kxh2 89. Ke2 Kg2 90. Kd3 Kf3 91. Kc4 e2 92. Kc5 e1=Q (92... e1=B 93. Kd5 d3 94. Ke6 d2 95. Ke7 d1=Q 96. Ke8 Ke3 97. Ke7 Bb4+ 98. Ke8 Rf8#) 93. Kd5 Rf6 (93... d3 {leads to mate.} 94. Kc5 d2 95. Kd5 Rb4 96. Kc6 d1=R 97. Kc7 Qc3#) 94. Kc4 Qb1 95. Kc5 Ke4 96. Kc4 Rc6#) 0-1

[Event "Sardinia World Festival-A 2024"]
[Site "Orosei"]
[Date "2024.04.30"]
[Round "5.48"]
[White "Botez, Andrea"]
[Black "Jakobsen, Oivind"]
[Result "1-0"]
[ECO "D00"]
[WhiteElo "1879"]
[BlackElo "1721"]
[Annotator "NA RC"]
[PlyCount "107"]
[EventDate "2024.04.26"]
[EventType "swiss"]
[EventCountry "ITA"]
[SourceTitle "playchess.com"]
[Source "ChessBase"]
[SourceQuality "1"]
[TimeControl "40/5400+30:1800+30"]

1. d4 {[%emt 0:00:03]} d5 {[%emt 0:03:11]} 2. Nc3 {[%emt 0:00:09]} Nf6 {[%emt 0:00:14]} 3. Bf4 {[%emt 0:00:07]} c6 {[%emt 0:00:18]} 4. e3 {[%emt 0:00:23]} e6 {[%emt 0:01:15]} 5. Bd3 {[%emt 0:01:10]} Be7 {[%emt 0:00:37]} 6. Nf3 {[%emt 0:01:12]} O-O {[%emt 0:01:14]} 7. O-O {[%emt 0:00:18]} Nbd7 {[%emt 0:00:26]} 8. Ne2 {[%emt 0:02:00]} c5 {[%emt 0:00:58]} 9. c3 {[%emt 0:00:24]} b6 {[%emt 0:01:41]} 10. Ng3 {[%emt 0:01:47]} c4 {[%emt 0:00:30]} 11. Bc2 {[%emt 0:01:16]} Bb7 {[%emt 0:01:12]} 12. a4 {[%emt 0:03:49]} a6 {[%emt 0:00:54]} 13. b4 {[%emt 0:04:13]} Re8 {[%emt 0:02:53]} 14. b5 {[%emt 0:03:01]} Nf8 {[%emt 0:07:13]} 15. e4 {[%emt 0:11:18]} dxe4 {[%emt 0:02:00]} 16. Ne5 {[%emt 0:04:40]} Ng6 {[%emt 0:03:08]} 17. bxa6 {[%emt 0:14:14]} Rxa6 {[%emt 0:01:10]} 18. Bg5 {[%emt 0:05:02]} Nxe5 {[%emt 0:18:37]} 19. dxe5 {[%emt 0:00:12]} Nd5 {[%emt 0:02:13]} 20. Bxe7 {[%emt 0:00:42]} Qxe7 {[%emt 0:00:22]} 21. Nxe4 {[%emt 0:02:48]} Bc6 {[%emt 0:02:50]} 22. Qh5 {[%emt 0:15:24]} g6 {[%emt 0:05:38]} 23. Qh6 {[%emt 0:02:20]} f5 {[%emt 0:01:39]} 24. exf6 {[%emt 0:05:27]} Nxf6 {[%emt 0:00:23]} 25. Ng5 {[%emt 0:04:39]} Ra5 {[%emt 0:14:16]} 26. h3 {[%emt 0:08:58]} Nh5 {[%emt 0:10:30]} 27. Ne4 {[%emt 0:01:14]} Bxe4 {[%emt 0:05:40]} 28. Bxe4 {[%emt 0:00:06]} Qg5 {[%emt 0:00:24]} 29. Qxg5 {[%emt 0:00:27]} Rxg5 {[%emt 0:00:06]} 30. Rfe1 {[%emt 0:03:04]} Kf7 {[%emt 0:03:19]} 31. Rab1 {[%emt 0:01:14]} Rb8 {[%emt 0:02:59]} 32. Rb4 {[%emt 0:00:27]} Nf4 {[%emt 0:03:02]} 33. h4 {[%emt 0:01:53]} Rc5 {[%emt 0:00:50]} 34. Re3 {[%emt 0:01:39]} Nd5 {[%emt 0:00:52]} 35. Bxd5 {[%emt 0:00:55]} exd5 {[%emt 0:00:09]} 36. Re1 {[%emt 0:00:32]} Ra5 {[%emt 0:02:54]} 37. Re5 {[%emt 0:00:43]} Kf6 {[%emt 0:00:20]} 38. f4 {[%emt 0:00:13]} Rb7 {[%emt 0:00:32]} 39. Kf2 {[%emt 0:00:44]} Rc5 {[%emt 0:00:42]} 40. g4 {[%emt 0:00:28]} b5 {[%emt 0:00:58]} 41. Ke3 {[%emt 0:03:01]} Ra7 {[%emt 0:04:28]} 42. Kd4 {[%emt 0:03:45]} Rac7 {[%emt 0:00:39]} 43. axb5 {[%emt 0:00:21]} Rc8 {[%emt 0:01:32]} 44. Rxd5 {[%emt 0:01:15]} R5c7 {[%emt 0:04:29]} 45. b6 {[%emt 0:00:13]} Rb7 {[%emt 0:00:29]} 46. Rc5 {[%emt 0:00:27]} Rcb8 {[%emt 0:01:13]} 47. Rc6+ {[%emt 0:00:10]} Ke7 {[%emt 0:00:09]} 48. Kxc4 {[%emt 0:00:56]} Kd7 {[%emt 0:01:08]} 49. Kd5 {[%emt 0:00:58]} Ra8 {[%emt 0:02:48]} 50. Rbc4 {[%emt 0:02:38]} Kd8 {[%emt 0:01:18]} 51. Rd6+ {[%emt 0:01:39]} Ke8 {[%emt 0:04:07]} 52. Rc7 {[%emt 0:00:28]} Rab8 {[%emt 0:00:34]} 53. Rxb7 {[%emt 0:00:17]} Rxb7 {[%emt 0:00:09]} 54. Kc6 {[%emt 0:00:05]} 1-0